fUST/lending_fUST_20251001
["ID","MTS","AMOUNT","RATE_DAILY","PERIOD"]
[388702223,1759321873319,-150.0,0.00024658,2]
[388702224,1759321873328,-151.0,0.00024658,7]
[388702225,1759321873338,-151.0,0.00024658,7]
[388702226,1759321873347,-155.290531,0.00024658,7]
[388702227,1759321873357,-151.0,0.00024658,7]
[388702228,1759321873366,-151.0,0.00024658,7]
[388702229,1759321873375,-152.348496,0.00024658,7]
[388702230,1759321873384,-380.0,0.00024658,2]
[388702231,1759321873394,-500.0,0.00024658,2]
[388702232,1759321873404,-151.0,0.00024658,2]
[388702233,1759321873413,-869.0,0.000247,2]
[388702234,1759321873423,-823.0,0.000247,2]
[388702235,1759321873432,-16778.9328551,0.00024717,2]
[388702236,1759321873441,-151.942474,0.0002474,4]
[388702237,1759321873451,-16625.44862943,0.00024774,2]
[388702238,1759321873460,-500.0,0.00024782,5]
[388702239,1759321873469,-1739.26229877,0.000248,4]
[388702240,1759321873479,-30774.2267544,0.000248,2]
[388702241,1759321873489,-248.4169844,0.0002489,7]
[388702242,1759321873498,-734008.720707,0.000249,2]
[388702243,1759321873507,-920.0,0.00024928,2]
[388702244,1759321873516,-1326.54,0.00024929,2]
[388702245,1759321873526,-575.41,0.00024931,2]
[388702246,1759321873535,-732.69,0.00024931,2]
[388702247,1759321873545,-502.46,0.00024931,2]
[388702248,1759321873554,-500.0,0.00024931,2]
[388702249,1759321873564,-540.44,0.00024931,2]
[388702250,1759321873573,-1093.76,0.00024931,2]
[388702251,1759321873582,-256.28756973,0.00024931,2]
[388702252,1759321873591,-653.65,0.00024931,2]
[388702253,1759321873601,-500.0,0.00024931,2]
[388702254,1759321873610,-500.0,0.00024931,2]
[388702255,1759321873619,-775.98,0.00024931,2]
[388702256,1759321873628,-420.45459996,0.00024931,2]
[388702257,1759321873638,-726.09,0.00024931,2]
[388702258,1759321873647,-580.53,0.00024931,2]
[388702259,1759321873656,-769.46,0.00024931,2]
[388702260,1759321873665,-1943.96,0.00024931,2]
[388702261,1759321873674,-612.02,0.00024931,2]
[388702262,1759321873683,-969.0,0.00024931,2]
[388702263,1759321873693,-763.2,0.00024931,2]
[388702264,1759321873702,-662.1,0.00024931,2]
[388702265,1759321873712,-1161.75,0.00024931,2]
[388702266,1759321873723,-1820.64,0.00024931,2]
[388702267,1759321873733,-711.47,0.00024931,2]
[388702268,1759321873743,-1119.87,0.00024931,2]
[388702269,1759321873753,-695.1,0.00024931,2]
[388702270,1759321873762,-688.73,0.00024931,2]
[388702271,1759321873771,-557.33,0.00024931,2]
[388702272,1759321873780,-2140.28,0.00024931,2]
[388702273,1759321873789,-914.94,0.00024931,2]
[388702274,1759321873799,-716.76,0.00024931,2]
[388702275,1759321873808,-613.07671965,0.00024931,2]
[388702276,1759321873817,-1047.55,0.00024931,2]
[388702277,1759321873826,-2079.09,0.00024931,2]
[388702278,1759321873835,-816.71,0.00024931,2]
[388702279,1759321873849,-1092.96,0.00024931,2]
[388702280,1759321873858,-758.83,0.00024931,2]
[388702281,1759321873867,-583.79,0.00024931,2]
[388702282,1759321873876,-636.07,0.00024931,2]
[388702283,1759321873886,-2835.74,0.00024931,2]
[388702284,1759321873895,-597.08,0.00024931,2]
[388702285,1759321873904,-604.04,0.00024931,2]
[388702286,1759321873915,-1919.86,0.00024931,2]
[388702287,1759321873924,-813.89,0.00024931,2]
[388702288,1759321873934,-520.36,0.00024931,2]
[388702289,1759321873944,-594.37,0.00024931,2]
[388702290,1759321873954,-2845.23,0.00024931,2]
[388702291,1759321873963,-735.28,0.00024931,2]
[388702292,1759321873973,-3053.05,0.00024931,2]
[388702293,1759321873982,-671.94,0.00024931,2]
[388702294,1759321873991,-1314.73,0.00024931,2]
[388702295,1759321874001,-666.86,0.00024931,2]
[388702296,1759321874011,-599.23,0.00024931,2]
[388702297,1759321874021,-2778.08,0.00024931,2]
[388702298,1759321874030,-705.59,0.00024931,2]
[388702299,1759321874040,-270.91467345,0.00024931,2]
[388702300,1759321874049,-741.42,0.00024931,2]
[388702301,1759321874058,-845.2,0.00024931,2]
[388702302,1759321874068,-1126.69,0.00024931,2]
[388702303,1759321874079,-3581.98,0.00024931,2]
[388702304,1759321874089,-733.07,0.00024931,2]
[388702305,1759321874099,-1516.75,0.00024931,2]
[388702306,1759321874108,-9167.63,0.00024931,2]
[388702307,1759321874118,-163.31654351,0.00024931,2]
[388702308,1759321874127,-541.2,0.00024931,2]
[388702309,1759321874137,-1344.06,0.00024931,2]
[388702310,1759321874146,-721.24,0.00024931,2]
[388702311,1759321874156,-1694.29,0.00024931,2]
[388702312,1759321874165,-1030.61,0.00024931,2]
[388702313,1759321874174,-1091.43,0.00024931,2]
[388702314,1759321874184,-1335.93,0.00024931,2]
[388702315,1759321874194,-1839.37,0.00024931,2]
[388702316,1759321874204,-1144.06,0.00024931,2]
[388702317,1759321874213,-1459.47,0.00024931,2]
[388702318,1759321874223,-836.98,0.00024931,2]
[388702319,1759321874232,-2105.57,0.00024931,2]
[388702320,1759321874242,-638.95,0.00024931,2]
[388702321,1759321874251,-1315.4,0.00024931,2]
[388702322,1759321874260,-878.29,0.00024931,2]
[388702323,1759321874269,-1595.24,0.00024931,2]
[388702324,1759321874278,-1473.32,0.00024931,2]
[388702325,1759321874287,-1220.82,0.00024931,2]
[388702326,1759321874298,-1324.01,0.00024931,2]
[388702327,1759321874307,-912.25,0.00024931,2]
[388702328,1759321874316,-500.0,0.00024931,2]
[388702329,1759321874325,-999.89,0.00024931,2]
[388702330,1759321874334,-1163.38,0.00024931,2]
[388702331,1759321874343,-500.0,0.00024931,2]
[388702332,1759321874353,-2709.32,0.00024931,2]
[388702333,1759321874472,-1580.81,0.00024931,2]
[388702334,1759321874482,-577.98,0.00024931,2]
[388702335,1759321874491,-1438.98,0.00024931,2]
[388702336,1759321874501,-3424.63,0.00024931,2]
[388702337,1759321874510,-1244.25,0.00024931,2]
[388702338,1759321874520,-1550.16,0.00024931,2]
[388702339,1759321874529,-500.0,0.00024931,2]
[388702340,1759321874538,-862.91,0.00024931,2]
[388702341,1759321874548,-1140.21,0.00024931,2]
[388702342,1759321874557,-1371.74,0.00024931,2]
[388702343,1759321874566,-872.96,0.00024931,2]
[388702344,1759321874576,-4231.65,0.00024931,2]
[388702345,1759321874585,-645.5,0.00024931,2]
[388702346,1759321874594,-1232.6,0.00024931,2]
[388702347,1759321874604,-1223.3,0.00024931,2]
[388702348,1759321874613,-590.09,0.00024931,2]
[388702349,1759321874622,-1447.95,0.00024931,2]
[388702350,1759321874631,-798.59,0.00024931,2]
[388702351,1759321874640,-1782.85,0.00024931,2]
[388702352,1759321874650,-1838.64,0.00024931,2]
[388702353,1759321874659,-1516.56,0.00024931,2]
[388702354,1759321874668,-893.08,0.00024931,2]
[388702355,1759321874678,-630.1,0.00024931,2]
[388702356,1759321874688,-609.29,0.00024931,2]
[388702357,1759321874698,-2743.35,0.00024931,2]
[388702358,1759321874707,-1057.58,0.00024931,2]
[388702359,1759321874716,-2029.61,0.00024931,2]
[388702360,1759321874726,-1681.29,0.00024931,2]
[388702361,1759321874735,-1605.61,0.00024931,2]
[388702362,1759321874744,-1745.65,0.00024931,2]
[388702363,1759321874753,-500.0,0.00024932,2]
[388702364,1759321874762,-231.10152507,0.00024932,2]
[388702365,1759321874772,-5500.0,0.00024952,2]
[388702366,1759321874781,-700.0,0.00024991,2]
[388702367,1759321874790,-4596.71665183,0.00025,7]
[388702368,1759321874799,-209.51244186,0.00025,2]
[388702369,1759321874808,-361.81605139,0.00025,2]
[388702370,1759321874817,-150.0,0.00025,2]
[388702371,1759321874827,-600.0,0.00025,2]
[388702372,1759321874836,-1073.10595488,0.00025,2]
[388702373,1759321874850,-17707.42197493,0.00025,2]
[388702374,1759321874860,-2644.27266481,0.00025,2]
[388702375,1759321874869,-44000.0,0.00025,2]
[388702376,1759321874879,-10364.0,0.00025,2]
[388702377,1759321874888,-160.0,0.00025,7]
[388702378,1759321874897,-250.0,0.00025,10]
[388702379,1759321874906,-2924.32999748,0.00025,2]
[388702380,1759321875599,-333.90136465,0.00019163,2]
[388702381,1759321875611,-55.5870853,0.00019163,2]
[388702382,1759321875621,-261.02574931,0.00019163,2]
[388702383,1759321875630,-500.0,0.00019178,2]
[388702384,1759321875640,-500.0,0.00019178,2]
[388702385,1759321875650,-473.33838339,0.00019178,2]
[388702386,1759321875660,-500.0,0.00019452,2]
[388702387,1759321875670,-500.0,0.00019452,2]
[388702388,1759321875679,-166.0,0.00019678,2]
[388702389,1759321875688,-500.0,0.00019726,2]
[388702390,1759321875697,-500.0,0.00019726,2]
[388702391,1759321875706,-500.0,0.0002,2]
[388702392,1759321875715,-513.15,0.0002,2]
[388702393,1759321875725,-166.0,0.00020226,2]
[388702394,1759321875734,-500.0,0.00020273,2]
[388702395,1759321875744,-500.0,0.00020547,2]
[388702396,1759321875753,-428.711,0.00020592,2]
[388702397,1759321875763,-630.0,0.00020592,2]
[388702398,1759321875772,-166.0,0.00020774,2]
[388702399,1759321875781,-500.0,0.00020821,2]
[388702400,1759321875791,-500.0,0.00021095,2]
[388702401,1759321875801,-166.0,0.00021322,2]
[388702402,1759321875810,-3964.1,0.00021369,2]
[388702403,1759321875819,-500.0,0.00021369,2]
[388702404,1759321875829,-3964.1,0.00021643,2]
[388702405,1759321875838,-500.0,0.00021643,2]
[388702406,1759321875852,-166.0,0.0002187,2]
[388702407,1759321875862,-3964.1,0.00021917,2]
[388702408,1759321875872,-500.0,0.00021917,2]
[388702409,1759321875882,-3964.1,0.00022191,2]
[388702410,1759321875892,-500.0,0.00022191,2]
[388702411,1759321875901,-166.0,0.00022418,2]
[388702412,1759321875911,-3964.1,0.00022465,2]
[388702413,1759321875921,-500.0,0.00022465,2]
[388702414,1759321875930,-3964.1,0.00022739,2]
[388702415,1759321875938,-500.0,0.00022739,2]
[388702416,1759321875947,-166.0,0.00022966,2]
[388702417,1759321875956,-3964.1,0.00023013,2]
[388702418,1759321875965,-500.0,0.00023013,2]
[388702419,1759321875974,-3964.1,0.00023287,2]
[388702420,1759321875982,-555.31630704,0.00023287,2]
[388702421,1759321875992,-166.0,0.00023514,2]
[388702422,1759321876001,-3964.1,0.00023561,2]
[388702423,1759321876011,-410.0,0.00023592,2]
[388702424,1759321876020,-630.0,0.00023592,2]
[388702425,1759321876029,-3964.1,0.00023835,2]
[388702426,1759321876038,-3964.1,0.00024109,2]
[388702427,1759321876048,-3964.1,0.00024383,2]
[388702428,1759321876057,-3964.1,0.00024657,2]
[388702429,1759321876066,-3964.1,0.00024931,2]
[388702430,1759321876075,-98256.40658913,0.00025,2]
[388702431,1759321876084,-4000.0,0.00025,4]
[388702432,1759321876093,-4658.24996534,0.00025044,2]
[388702433,1759321876102,-500.0,0.00025056,5]
[388702434,1759321876111,-3292.0,0.00025061,2]
[388702435,1759321876121,-200.0,0.000251,7]
[388702436,1759321876130,-250.0,0.000251,10]
[388702437,1759321876139,-960.0,0.00025111,2]
[388702438,1759321876148,-250.0,0.000252,10]
[388702439,1759321876157,-6000.0,0.000252,2]
[388702440,1759321876166,-920.0,0.00025202,2]
[388702441,1759321876175,-1326.54,0.00025203,2]
[388702442,1759321876183,-575.41,0.00025205,2]
[388702443,1759321876193,-732.69,0.00025205,2]
[388702444,1759321876202,-502.46,0.00025205,2]
[388702445,1759321876210,-373.41358355,0.00025205,2]
[388702446,1759321876219,-540.44,0.00025205,2]
[388702447,1759321876228,-653.65,0.00025205,2]
[388702448,1759321876237,-500.0,0.00025205,2]
[388702449,1759321876246,-388.39433523,0.00025205,2]
[388702450,1759321876255,-775.98,0.00025205,2]
[388702451,1759321876264,-726.09,0.00025205,2]
[388702452,1759321876273,-580.53,0.00025205,2]
[388702453,1759321876282,-769.46,0.00025205,2]
[388702454,1759321876291,-1943.96,0.00025205,2]
[388702455,1759321876301,-612.02,0.00025205,2]
[388702456,1759321876311,-969.0,0.00025205,2]
[388702457,1759321876320,-763.2,0.00025205,2]
[388702458,1759321876329,-662.1,0.00025205,2]
[388702459,1759321876338,-1161.75,0.00025205,2]
[388702460,1759321876348,-1820.64,0.00025205,2]
[388702461,1759321876357,-711.47,0.00025205,2]
[388702462,1759321876366,-1119.87,0.00025205,2]
[388702463,1759321876376,-695.1,0.00025205,2]
[388702464,1759321876500,-688.73,0.00025205,2]
[388702465,1759321876513,-557.33,0.00025205,2]
[388702466,1759321876522,-2140.28,0.00025205,2]
[388702467,1759321876532,-914.94,0.00025205,2]
[388702468,1759321876543,-716.76,0.00025205,2]
[388702469,1759321876552,-1047.55,0.00025205,2]
[388702470,1759321876561,-2079.09,0.00025205,2]
[388702471,1759321876572,-816.71,0.00025205,2]
[388702472,1759321876581,-1092.96,0.00025205,2]
[388702473,1759321876590,-758.83,0.00025205,2]
[388702474,1759321876600,-583.79,0.00025205,2]
[388702475,1759321876609,-636.07,0.00025205,2]
[388702476,1759321876619,-597.08,0.00025205,2]
[388702477,1759321876628,-1919.86,0.00025205,2]
[388702478,1759321876638,-813.89,0.00025205,2]
[388702479,1759321876649,-520.36,0.00025205,2]
[388702480,1759321876659,-594.37,0.00025205,2]
[388702481,1759321876669,-2845.23,0.00025205,2]
[388702482,1759321876678,-735.28,0.00025205,2]
[388702483,1759321876687,-3053.05,0.00025205,2]
[388702484,1759321876696,-671.94,0.00025205,2]
[388702485,1759321876706,-1314.73,0.00025205,2]
[388702486,1759321876715,-599.23,0.00025205,2]
[388702487,1759321876725,-2778.08,0.00025205,2]
[388702488,1759321876734,-705.59,0.00025205,2]
[388702489,1759321876744,-741.42,0.00025205,2]
[388702490,1759321876753,-845.2,0.00025205,2]
[388702491,1759321876762,-1126.69,0.00025205,2]
[388702492,1759321876772,-3581.98,0.00025205,2]
[388702493,1759321876781,-1516.75,0.00025205,2]
[388702494,1759321876790,-733.07,0.00025205,2]
[388702495,1759321876803,-9167.63,0.00025205,2]
[388702496,1759321876812,-541.2,0.00025205,2]
[388702497,1759321876821,-1344.06,0.00025205,2]
[388702498,1759321876831,-721.24,0.00025205,2]
[388702499,1759321876840,-1694.29,0.00025205,2]
[388702500,1759321876854,-1030.61,0.00025205,2]
[388702501,1759321876863,-1091.43,0.00025205,2]
[388702502,1759321876873,-1335.93,0.00025205,2]
[388702503,1759321876882,-1839.37,0.00025205,2]
[388702504,1759321876893,-1144.06,0.00025205,2]
[388702505,1759321876902,-1459.47,0.00025205,2]
[388702506,1759321876911,-836.98,0.00025205,2]
[388702507,1759321876921,-2105.57,0.00025205,2]
[388702508,1759321876930,-638.95,0.00025205,2]
[388702509,1759321876938,-1315.4,0.00025205,2]
[388702510,1759321876948,-878.29,0.00025205,2]
[388702511,1759321876957,-1595.24,0.00025205,2]
[388702512,1759321876966,-1473.32,0.00025205,2]
[388702513,1759321876976,-1220.82,0.00025205,2]
[388702514,1759321876986,-1324.01,0.00025205,2]
[388702515,1759321876996,-912.25,0.00025205,2]
[388702516,1759321877005,-350.85555601,0.00025205,2]
[388702517,1759321877014,-999.89,0.00025205,2]
[388702518,1759321877023,-1163.38,0.00025205,2]
[388702519,1759321877032,-240.78,0.00025205,2]
[388702520,1759321877041,-2709.32,0.00025205,2]
[388702521,1759321877052,-1580.81,0.00025205,2]
[388702522,1759321877062,-577.98,0.00025205,2]
[388702523,1759321877071,-1438.98,0.00025205,2]
[388702524,1759321877080,-3424.63,0.00025205,2]
[388702525,1759321877089,-1244.25,0.00025205,2]
[388702526,1759321877098,-1550.16,0.00025205,2]
[388702527,1759321877107,-500.0,0.00025205,2]
[388702528,1759321877116,-862.91,0.00025205,2]
[388702529,1759321877125,-1140.21,0.00025205,2]
[388702530,1759321877134,-1371.74,0.00025205,2]
[388702531,1759321877142,-872.96,0.00025205,2]
[388702532,1759321877151,-4231.65,0.00025205,2]
[388702533,1759321877160,-645.5,0.00025205,2]
[388702534,1759321877169,-1232.6,0.00025205,2]
[388702535,1759321877178,-1223.3,0.00025205,2]
[388702536,1759321877187,-590.09,0.00025205,2]
[388702537,1759321877197,-1447.95,0.00025205,2]
[388702538,1759321877206,-798.59,0.00025205,2]
[388702539,1759321877215,-1782.85,0.00025205,2]
[388702540,1759321877226,-1838.64,0.00025205,2]
[388702541,1759321877235,-1516.56,0.00025205,2]
[388702542,1759321877244,-893.08,0.00025205,2]
[388702543,1759321877253,-630.1,0.00025205,2]
[388702544,1759321877263,-609.29,0.00025205,2]
[388702545,1759321877272,-2743.35,0.00025205,2]
[388702546,1759321877281,-1057.58,0.00025205,2]
[388702547,1759321877290,-2029.61,0.00025205,2]
[388702548,1759321877300,-1681.29,0.00025205,2]
[388702549,1759321877308,-1605.61,0.00025205,2]
[388702550,1759321877318,-1745.65,0.00025205,2]
[388702551,1759321877327,-3964.1,0.00025205,2]
[388702552,1759321877336,-250.0,0.00025205,2]
[388702553,1759321877344,-223.1397124,0.00025205,2]
[388702554,1759321877353,-500.0,0.00025206,2]
[388702555,1759321877362,-250.0,0.000253,10]
[388702556,1759321877371,-500.0,0.0002533,5]
[388702557,1759321877381,-250.0,0.000254,10]
[388702558,1759321877390,-900.0,0.00025469,3]
[388702559,1759321877399,-931.10331798,0.00025476,2]
[388702560,1759321877409,-1326.54,0.00025477,2]
[388702561,1759321877419,-575.64984958,0.00025479,2]
[388702562,1759321877428,-732.86144627,0.00025479,2]
[388702563,1759321877438,-502.58802113,0.00025479,2]
[388702564,1759321877447,-540.50659671,0.00025479,2]
[388702565,1759321877456,-653.66116451,0.00025479,2]
[388702566,1759321877465,-212.5806606,0.00025479,2]
[388702567,1759321877474,-776.14187023,0.00025479,2]
[388702568,1759321877483,-726.2675744,0.00025479,2]
[388702569,1759321877493,-580.71223899,0.00025479,2]
[388702570,1759321877503,-769.53220867,0.00025479,2]
[388702571,1759321877512,-1944.19429237,0.00025479,2]
[388702572,1759321877521,-612.14995297,0.00025479,2]
[388702573,1759321877530,-969.10790699,0.00025479,2]
[388702574,1759321877539,-763.35575535,0.00025479,2]
[388702575,1759321877550,-662.20307987,0.00025479,2]
[388702576,1759321877559,-1161.8973235,0.00025479,2]
[388702577,1759321877568,-1820.87,0.00025479,2]
[388702578,1759321877578,-711.49561006,0.00025479,2]
[388702579,1759321877587,-1119.91794362,0.00025479,2]
[388702580,1759321877596,-695.18084514,0.00025479,2]
[388702581,1759321877606,-688.89684209,0.00025479,2]
[388702582,1759321877615,-557.33960243,0.00025479,2]
[388702583,1759321877625,-2140.37,0.00025479,2]
[388702584,1759321877634,-914.97748277,0.00025479,2]
[388702585,1759321877643,-716.93526248,0.00025479,2]
[388702586,1759321877652,-1047.71863526,0.00025479,2]
[388702587,1759321877661,-2079.28074821,0.00025479,2]
[388702588,1759321877670,-816.77152873,0.00025479,2]
[388702589,1759321877680,-1093.17063465,0.00025479,2]
[388702590,1759321877689,-758.99391059,0.00025479,2]
[388702591,1759321877699,-583.96601216,0.00025479,2]
[388702592,1759321877708,-636.13303668,0.00025479,2]
[388702593,1759321877718,-597.20233397,0.00025479,2]
[388702594,1759321877728,-1919.90936527,0.00025479,2]
[388702595,1759321877737,-813.96998064,0.00025479,2]
[388702596,1759321877747,-520.56785818,0.00025479,2]
[388702597,1759321877757,-594.56105686,0.00025479,2]
[388702598,1759321877766,-2845.28104227,0.00025479,2]
[388702599,1759321877776,-735.44191274,0.00025479,2]
[388702600,1759321877787,-3053.09073572,0.00025479,2]
[388702601,1759321877796,-672.09205522,0.00025479,2]
[388702602,1759321877805,-1314.87326402,0.00025479,2]
[388702603,1759321877815,-599.46468147,0.00025479,2]
[388702604,1759321877824,-2778.18978958,0.00025479,2]
[388702605,1759321877834,-705.80198279,0.00025479,2]
[388702606,1759321877847,-741.62029908,0.00025479,2]
[388702607,1759321877856,-845.39252213,0.00025479,2]
[388702608,1759321877866,-1126.92386176,0.00025479,2]
[388702609,1759321877875,-3582.12100978,0.00025479,2]
[388702610,1759321877886,-1516.75720395,0.00025479,2]
[388702611,1759321877895,-733.25032083,0.00025479,2]
[388702612,1759321877905,-9167.70368524,0.00025479,2]
[388702613,1759321877916,-541.42265592,0.00025479,2]
[388702614,1759321877929,-1344.29605364,0.00025479,2]
[388702615,1759321877938,-721.37968598,0.00025479,2]
[388702616,1759321877948,-1694.44504823,0.00025479,2]
[388702617,1759321877958,-1030.69533773,0.00025479,2]
[388702618,1759321877967,-1091.61802242,0.00025479,2]
[388702619,1759321877977,-1336.0857389,0.00025479,2]
[388702620,1759321877986,-1839.37303553,0.00025479,2]
[388702621,1759321877996,-1144.06611064,0.00025479,2]
[388702622,1759321878005,-1459.68294307,0.00025479,2]
[388702623,1759321878015,-837.10569581,0.00025479,2]
[388702624,1759321878025,-2105.65639644,0.00025479,2]
[388702625,1759321878034,-639.00780307,0.00025479,2]
[388702626,1759321878043,-1315.6041434,0.00025479,2]
[388702627,1759321878053,-878.37155418,0.00025479,2]
[388702628,1759321878062,-1595.4387719,0.00025479,2]
[388702629,1759321878071,-1473.41257699,0.00025479,2]
[388702630,1759321878080,-1221.00212473,0.00025479,2]
[388702631,1759321878090,-1324.10369683,0.00025479,2]
[388702632,1759321878100,-912.29114797,0.00025479,2]
[388702633,1759321878109,-999.99710819,0.00025479,2]
[388702634,1759321878118,-1163.6098737,0.00025479,2]
[388702635,1759321878127,-2709.53590815,0.00025479,2]
[388702636,1759321878136,-1581.01178964,0.00025479,2]
[388702637,1759321878145,-578.15509683,0.00025479,2]
[388702638,1759321878154,-1439.10990042,0.00025479,2]
[388702639,1759321878163,-3424.69895579,0.00025479,2]
[388702640,1759321878172,-1244.33625588,0.00025479,2]
[388702641,1759321878182,-1550.17827618,0.00025479,2]
[388702642,1759321878191,-257.05171012,0.00025479,2]
[388702643,1759321878200,-863.11891418,0.00025479,2]
[388702644,1759321878209,-1140.34536772,0.00025479,2]
[388702645,1759321878218,-1371.89897238,0.00025479,2]
[388702646,1759321878228,-873.08546102,0.00025479,2]
[388702647,1759321878238,-4231.65905226,0.00025479,2]
[388702648,1759321878247,-645.6654831,0.00025479,2]
[388702649,1759321878256,-1232.6884396,0.00025479,2]
[388702650,1759321878266,-1223.33286721,0.00025479,2]
[388702651,1759321878275,-590.31601027,0.00025479,2]
[388702652,1759321878283,-1448.16322488,0.00025479,2]
[388702653,1759321878293,-798.60266317,0.00025479,2]
[388702654,1759321878303,-1782.90623822,0.00025479,2]
[388702655,1759321878312,-1838.78086114,0.00025479,2]
[388702656,1759321878322,-1516.76924046,0.00025479,2]
[388702657,1759321878332,-893.10661484,0.00025479,2]
[388702658,1759321878342,-630.17170604,0.00025479,2]
[388702659,1759321878351,-609.37282457,0.00025479,2]
[388702660,1759321878361,-2743.44681396,0.00025479,2]
[388702661,1759321878371,-1057.65923604,0.00025479,2]
[388702662,1759321878380,-2029.68723587,0.00025479,2]
[388702663,1759321878388,-1681.37199243,0.00025479,2]
[388702664,1759321878398,-1605.74407469,0.00025479,2]
[388702665,1759321878407,-1745.73225536,0.00025479,2]
[388702666,1759321878416,-3964.31594189,0.00025479,2]
[388702667,1759321878427,-500.0,0.0002548,2]
[388702668,1759321878436,-1000.0,0.000255,2]
[388702669,1759321878445,-250.0,0.000255,10]
[388702670,1759321878454,-6000.0,0.000255,2]
[388702671,1759321878463,-4658.24996534,0.00025504,3]
[388702672,1759321878473,-174.34281185,0.00025532,2]
[388702673,1759321878482,-382.96434378,0.0002556,2]
[388702674,1759321878491,-382.96434378,0.0002556,2]
[388702675,1759321878607,-382.96434378,0.0002556,2]
[388702676,1759321878616,-382.96434378,0.0002556,2]
[388702677,1759321878625,-10965.18,0.000256,2]
[388702678,1759321878635,-250.0,0.000256,10]
[388702679,1759321878643,-500.0,0.00025604,5]
[388702680,1759321878652,-166.73238277,0.00025656,2]
[388702681,1759321878662,-3743.885975,0.00025658,2]
[388702682,1759321878671,-1060.0,0.00025659,2]
[388702683,1759321878680,-197.0,0.00025671,17]
[388702684,1759321878689,-250.0,0.000257,10]
[388702685,1759321878698,-382.96434378,0.00025713,4]
[388702686,1759321878707,-382.96434378,0.00025713,4]
[388702687,1759321878717,-3834.13502631,0.00025748,2]
[388702688,1759321878726,-1326.54,0.00025751,2]
[388702689,1759321878734,-350.0,0.00025753,2]
[388702690,1759321878743,-500.0,0.00025754,2]
[388702691,1759321878752,-24501.73219398,0.000258,2]
[388702692,1759321878761,-311.218736,0.000258,10]
[388702693,1759321878771,-174.34281185,0.00025839,6]
[388702694,1759321878780,-174.34281185,0.00025839,6]
[388702695,1759321878791,-5847.0,0.00025853,2]
[388702696,1759321878800,-382.96434378,0.00025867,6]
[388702697,1759321878809,-382.96434378,0.00025867,6]
[388702698,1759321878819,-4658.24996534,0.00025963,4]
[388702699,1759321878828,-46614.05378181,0.00026,21]
[388702700,1759321878912,-500.0,0.00019178,2]
[388702701,1759321878923,-528.18657132,0.00019178,2]
[388702702,1759321878932,-441.44,0.00019452,2]
[388702703,1759321878941,-166.0,0.00024062,2]
[388702704,1759321878950,-166.0,0.0002461,2]
[388702705,1759321878960,-211.0,0.00025158,2]
[388702706,1759321878969,-19467.02029948,0.00026,21]
[388702707,1759321878980,-802.66563173,0.00026,21]
[388702708,1759321878991,-277.55444643,0.00026,21]
[388702709,1759321879189,-500.0,0.00019178,2]
[388702710,1759321879198,-500.0,0.00019452,2]
[388702711,1759321879207,-500.0,0.00019726,2]
[388702712,1759321879217,-500.0,0.0002,2]
[388702713,1759321879226,-500.0,0.00020273,2]
[388702714,1759321879235,-422.0,0.00020547,2]
[388702715,1759321879244,-2884.11747145,0.00026,21]
[388702716,1759321879408,-500.0,0.00019178,2]
[388702717,1759321879419,-500.0,0.00019178,2]
[388702718,1759321879429,-237.15,0.00019452,2]
[388702719,1759321879438,-2156.0,0.00020592,2]
[388702720,1759321879447,-2156.0,0.00023592,2]
[388702721,1759321879456,-7786.6096627,0.00026,21]
[388702722,1759321879467,-1977.99539939,0.00026,21]